fUST/lending_fUST_20260111
["ID","MTS","AMOUNT","RATE_DAILY","PERIOD"]
[401312253,1768127442562,-1000.0,0.00013821,2]
[401312254,1768127442571,-1000.0,0.00013821,2]
[401312255,1768127442581,-1000.0,0.00013821,2]
[401312256,1768127442591,-1000.0,0.00013821,2]
[401312257,1768127442600,-1000.0,0.00013821,2]
[401312258,1768127442609,-1000.0,0.00013821,2]
[401312259,1768127442619,-1000.0,0.00013821,2]
[401312260,1768127442628,-2628.0,0.00013877,2]
[401312261,1768127442637,-2628.0,0.00014014,2]
[401312262,1768127442647,-2628.0,0.00014151,2]
[401312263,1768127442656,-425.28,0.000142,2]
[401312264,1768127442666,-1002.38932755,0.00014247,2]
[401312265,1768127442675,-661.478767,0.00014247,2]
[401312266,1768127442684,-1000.0,0.00014247,2]
[401312267,1768127442694,-469.53593685,0.00014247,2]
[401312268,1768127442703,-1000.0,0.00014247,2]
[401312269,1768127442712,-1000.0,0.00014247,2]
[401312270,1768127442721,-1000.0,0.00014247,2]
[401312271,1768127442731,-1000.0,0.00014247,2]
[401312272,1768127442741,-1000.0,0.00014247,2]
[401312273,1768127442750,-313.64870907,0.00014247,2]
[401312274,1768127442759,-1000.0,0.00014247,2]
[401312275,1768127442769,-283.3787305,0.00014247,2]
[401312276,1768127442779,-1000.0,0.00014247,2]
[401312277,1768127442787,-1001.8641087,0.00014247,2]
[401312278,1768127442797,-1000.0,0.00014247,2]
[401312279,1768127442806,-1000.0,0.00014247,2]
[401312280,1768127442815,-171.67593478,0.00014247,2]
[401312281,1768127442825,-875.35271766,0.00014247,2]
[401312282,1768127442836,-1000.0,0.00014247,2]
[401312283,1768127442844,-1000.0,0.00014247,2]
[401312284,1768127442854,-1000.0,0.00014247,2]
[401312285,1768127442864,-1000.0,0.00014247,2]
[401312286,1768127442874,-1000.0,0.00014247,2]
[401312287,1768127442884,-1000.0,0.00014247,2]
[401312288,1768127442893,-1000.0,0.00014247,2]
[401312289,1768127442903,-1029.61129365,0.00014247,2]
[401312290,1768127442913,-1000.0,0.00014247,2]
[401312291,1768127442923,-1003.14554213,0.00014247,2]
[401312292,1768127442933,-1000.0,0.00014247,2]
[401312293,1768127442942,-1000.0,0.00014247,2]
[401312294,1768127442952,-1000.0,0.00014247,2]
[401312295,1768127442962,-1000.0,0.00014247,2]
[401312298,1768127443063,-1000.0,0.00014247,2]
[401312299,1768127443072,-1000.0,0.00014247,2]
[401312300,1768127443081,-1000.0,0.00014247,2]
[401312302,1768127443090,-1000.0,0.00014247,2]
[401312304,1768127443100,-1000.0,0.00014247,2]
[401312306,1768127443109,-710.18768542,0.00014247,2]
[401312308,1768127443118,-1000.0,0.00014247,2]
[401312311,1768127443128,-1000.0,0.00014247,2]
[401312312,1768127443137,-1000.0,0.00014247,2]
[401312313,1768127443146,-1000.0,0.00014247,2]
[401312314,1768127443155,-638.41119879,0.00014247,2]
[401312315,1768127443164,-500.0,0.00014247,2]
[401312316,1768127443173,-1000.0,0.00014247,2]
[401312317,1768127443183,-505.42705469,0.00014247,2]
[401312318,1768127443192,-443.77041137,0.00014247,2]
[401312319,1768127443201,-1000.0,0.00014247,2]
[401312320,1768127443212,-1000.0,0.00014247,2]
[401312321,1768127443221,-1000.0,0.00014247,2]
[401312322,1768127443230,-1000.0,0.00014247,2]
[401312323,1768127443239,-1000.0,0.00014247,2]
[401312324,1768127443248,-1000.0,0.00014247,2]
[401312325,1768127443258,-1000.0,0.00014247,2]
[401312326,1768127443267,-2628.0,0.00014288,2]
[401312327,1768127443277,-1000.0,0.00014333,2]
[401312328,1768127443287,-244.0,0.00014333,2]
[401312329,1768127443296,-1500.0,0.00014368,2]
[401312330,1768127443306,-1500.0,0.00014368,2]
[401312331,1768127443315,-500.80134157,0.00014368,2]
[401312332,1768127443324,-1500.0,0.00014368,2]
[401312333,1768127443333,-1500.0,0.00014368,2]
[401312334,1768127443342,-500.0,0.00014368,2]
[401312335,1768127443351,-1500.0,0.00014368,2]
[401312336,1768127443360,-1500.0,0.00014368,2]
[401312337,1768127443369,-1500.0,0.00014368,2]
[401312338,1768127443379,-1500.0,0.00014368,2]
[401312339,1768127443388,-1500.0,0.00014368,2]
[401312340,1768127443398,-1500.0,0.00014368,2]
[401312341,1768127443408,-554.02767991,0.00014368,2]
[401312342,1768127443417,-1500.0,0.00014368,2]
[401312343,1768127443426,-793.78310386,0.00014368,2]
[401312344,1768127443435,-168.36851892,0.00014368,2]
[401312345,1768127443444,-1512.80470062,0.00014368,2]
[401312346,1768127443453,-1500.0,0.00014368,2]
[401312347,1768127443462,-1500.0,0.00014368,2]
[401312348,1768127443471,-1500.0,0.00014368,2]
[401312349,1768127443480,-323.03430659,0.00014368,2]
[401312350,1768127443490,-263.96834089,0.00014368,2]
[401312351,1768127443499,-1500.0,0.00014368,2]
[401312352,1768127443508,-500.0,0.00014368,2]
[401312353,1768127443517,-1500.0,0.00014368,2]
[401312354,1768127443526,-1500.0,0.00014368,2]
[401312355,1768127443535,-223.48736773,0.00014368,2]
[401312356,1768127443544,-1500.0,0.00014368,2]
[401312357,1768127443554,-500.0,0.00014368,2]
[401312358,1768127443563,-1500.0,0.00014368,2]
[401312359,1768127443573,-1500.0,0.00014368,2]
[401312360,1768127443583,-2631.1166099,0.00014425,2]
[401312361,1768127443592,-5000.0,0.0001451,2]
[401312362,1768127443601,-425.28,0.000147,2]
[401312363,1768127443611,-100000.0,0.00014736,2]
[401312364,1768127443620,-602.53259662,0.00014795,2]
[401312365,1768127443629,-1500.0,0.00014795,2]
[401312366,1768127443638,-1499.24471264,0.00014795,2]
[401312367,1768127443647,-661.95893033,0.00014795,2]
[401312368,1768127443656,-1500.0,0.00014795,2]
[401312369,1768127443665,-1500.0,0.00014795,2]
[401312370,1768127443674,-1500.0,0.00014795,2]
[401312371,1768127443683,-1500.0,0.00014795,2]
[401312372,1768127443692,-1500.0,0.00014795,2]
[401312373,1768127443701,-1500.0,0.00014795,2]
[401312374,1768127443710,-1500.0,0.00014795,2]
[401312375,1768127443719,-1514.12213244,0.00014795,2]
[401312376,1768127443728,-657.07022264,0.00014795,2]
[401312377,1768127443738,-674.14847626,0.00014795,2]
[401312378,1768127443747,-501.33075681,0.00014795,2]
[401312379,1768127443756,-1500.0,0.00014795,2]
[401312380,1768127443765,-1025.59078617,0.00014795,2]
[401312381,1768127443774,-514.14829436,0.00014795,2]
[401312382,1768127443783,-488.64589349,0.00014795,2]
[401312383,1768127443792,-1236.28209818,0.00014795,2]
[401312385,1768127443802,-1000.0,0.00014795,2]
[401312386,1768127443811,-1001.3782102,0.00014795,2]
[401312388,1768127443819,-1500.0,0.00014795,2]
[401312389,1768127443828,-1500.0,0.00014795,2]
[401312391,1768127443837,-503.75899236,0.00014795,2]
[401312393,1768127443846,-1500.0,0.00014795,2]
[401312394,1768127443855,-1482.84709438,0.00014795,2]
[401312396,1768127443864,-788.05151213,0.00014795,2]
[401312398,1768127443873,-500.76011771,0.00014795,2]
[401312399,1768127443882,-1516.76085072,0.00014795,2]
[401312401,1768127443891,-304.84096496,0.00014795,2]
[401312403,1768127443900,-1500.0,0.00014795,2]
[401312404,1768127443909,-1500.0,0.00014795,2]
[401312406,1768127443919,-1500.0,0.00014795,2]
[401312408,1768127443928,-1500.0,0.00014795,2]
[401312410,1768127443937,-1500.0,0.00014795,2]
[401312412,1768127443947,-1500.0,0.00014795,2]
[401312413,1768127443956,-650.76965904,0.00014916,2]
[401312415,1768127443965,-500.8125859,0.00014916,2]
[401312417,1768127443975,-1465.81779273,0.00014916,2]
[401312418,1768127443983,-1191.81021696,0.00014916,2]
[401312420,1768127443993,-2000.0,0.00014916,2]
[401312422,1768127444001,-1510.52551,0.00014916,2]
[401312424,1768127444011,-2000.0,0.00014916,2]
[401312425,1768127444020,-1001.19360014,0.00014916,2]
[401312427,1768127444030,-2000.0,0.00014916,2]
[401312430,1768127444039,-500.0,0.00014916,2]
[401312432,1768127444048,-2000.0,0.00014916,2]
[401312434,1768127444057,-2000.0,0.00014916,2]
[401312436,1768127444066,-2000.0,0.00014916,2]
[401312438,1768127444075,-365.99256781,0.00014916,2]
[401312440,1768127444084,-2000.0,0.00014916,2]
[401312441,1768127444093,-2000.0,0.00014916,2]
[401312443,1768127444103,-1502.56714759,0.00014916,2]
[401312445,1768127444113,-2000.0,0.00014916,2]
[401312447,1768127444123,-2000.0,0.00014916,2]
[401312448,1768127444133,-2000.0,0.00014916,2]
[401312449,1768127444143,-1613.0,0.00014994,2]
[401312450,1768127444152,-2429.49739422,0.00015,2]
[401312451,1768127444162,-800.0,0.00015068,2]
[401312452,1768127444171,-425.28,0.000153,2]
[401312453,1768127444181,-647.0968027,0.0001531,2]
[401312455,1768127444190,-1143.18421046,0.00015342,2]
[401312457,1768127444200,-339.58703801,0.00015342,2]
[401312459,1768127444211,-500.0,0.00015342,2]
[401312461,1768127444221,-2000.0,0.00015342,2]
[401312462,1768127444232,-1640.95571878,0.00015342,2]
[401312465,1768127444243,-2000.0,0.00015342,2]
[401312467,1768127444252,-2000.0,0.00015342,2]
[401312469,1768127444264,-2000.0,0.00015342,2]
[401312471,1768127444274,-1597.05305078,0.00015342,2]
[401312473,1768127444285,-1004.51727604,0.00015342,2]
[401312475,1768127444295,-304.72135436,0.00015342,2]
[401312477,1768127444304,-2000.0,0.00015342,2]
[401312479,1768127444315,-1501.01375621,0.00015342,2]
[401312481,1768127444324,-2000.0,0.00015342,2]
[401312483,1768127444334,-1003.80919542,0.00015342,2]
[401312485,1768127444344,-1144.01857865,0.00015342,2]
[401312487,1768127444353,-2000.0,0.00015342,2]
[401312488,1768127444363,-2000.0,0.00015342,2]
[401312489,1768127444373,-870.24597629,0.00015364,2]
[401312490,1768127444383,-1506.66545063,0.00015464,2]
[401312491,1768127444392,-2500.0,0.00015464,2]
[401312492,1768127444402,-501.72405702,0.00015464,2]
[401312493,1768127444411,-2500.0,0.00015464,2]
[401312494,1768127444420,-2500.0,0.00015464,2]
[401312495,1768127444430,-2500.0,0.00015464,2]
[401312496,1768127444440,-2500.0,0.00015464,2]
[401312497,1768127444449,-500.0,0.00015464,2]
[401312498,1768127444459,-2228.00390276,0.00015464,2]
[401312499,1768127444472,-2500.0,0.00015464,2]
[401312500,1768127444484,-2500.0,0.00015464,2]
[401312501,1768127444494,-1000.0,0.00015767,2]
[401312502,1768127444503,-492.0,0.00015767,2]
[401312503,1768127444514,-425.28,0.000158,2]
[401312504,1768127444523,-555.48898116,0.0001589,2]
[401312505,1768127444532,-2500.0,0.0001589,2]
[401312506,1768127444542,-2500.0,0.0001589,2]
[401312507,1768127444551,-2500.0,0.0001589,2]
[401312508,1768127444560,-2500.0,0.0001589,2]
[401312509,1768127444569,-2134.65901332,0.0001589,2]
[401312510,1768127444579,-2500.0,0.0001589,2]
[401312511,1768127444589,-2500.0,0.0001589,2]
[401312512,1768127444599,-3000.0,0.00016012,2]
[401312513,1768127444608,-3000.0,0.00016012,2]
[401312514,1768127444617,-3000.0,0.00016012,2]
[401312515,1768127444626,-3000.0,0.00016012,2]
[401312516,1768127444636,-3000.0,0.00016012,2]
[401312517,1768127444645,-3000.0,0.00016012,2]
[401312518,1768127444655,-3000.0,0.00016012,2]
[401312519,1768127444665,-1600.00734843,0.00016164,2]
[401312520,1768127444674,-425.28,0.000163,2]
[401312521,1768127444683,-500.0,0.00016438,2]
[401312522,1768127444693,-500.0,0.00016438,2]
[401312523,1768127444703,-500.0,0.00016438,2]
[401312524,1768127444712,-500.0,0.00016438,2]
[401312525,1768127444722,-281.92486594,0.00016438,2]
[401312526,1768127444732,-500.0,0.00016438,2]
[401312527,1768127444742,-500.0,0.00016438,2]
[401312528,1768127444751,-500.0,0.00016438,2]
[401312529,1768127444762,-594.49843147,0.00016438,2]
[401312530,1768127444771,-2502.60955562,0.00016438,2]
[401312531,1768127444781,-1552.92932298,0.00016438,2]
[401312532,1768127444792,-3000.0,0.00016438,2]
[401312533,1768127444802,-1500.0,0.00016438,2]
[401312534,1768127444812,-3000.0,0.00016438,2]
[401312535,1768127444822,-3000.0,0.00016438,2]
[401312536,1768127444833,-260.15865923,0.00016438,2]
[401312537,1768127444843,-1626.0,0.00016493,2]
[401312538,1768127444853,-3500.0,0.0001656,2]
[401312539,1768127444864,-3500.0,0.0001656,2]
[401312540,1768127444874,-3462.04250286,0.0001656,2]
[401312541,1768127444885,-3500.0,0.0001656,2]
[401312542,1768127444895,-3500.0,0.0001656,2]
[401312543,1768127444907,-3500.0,0.0001656,2]
[401312544,1768127444920,-3500.0,0.0001656,2]
[401312545,1768127444937,-425.28,0.000168,2]
[401312546,1768127444948,-2578.16970935,0.00016986,2]
[401312547,1768127444958,-3500.0,0.00016986,2]
[401312548,1768127444967,-3500.0,0.00016986,2]
[401312549,1768127444977,-29268.59240056,0.00017,2]
[401312550,1768127444986,-4000.0,0.00017108,2]
[401312551,1768127444995,-4000.0,0.00017108,2]
[401312552,1768127445006,-2378.46600243,0.00017108,2]
[401312553,1768127445015,-1000.0,0.00017108,2]
[401312554,1768127445024,-2000.0,0.00017108,2]
[401312555,1768127445034,-2000.0,0.00017108,2]
[401312556,1768127445043,-13426.51869244,0.00017151,2]
[401312557,1768127445053,-13426.51869244,0.00017151,2]
[401312558,1768127445062,-468.6,0.00017289,2]
[401312559,1768127445072,-425.28,0.000173,2]
[401312560,1768127445082,-722.73149393,0.0001731,2]
[401312561,1768127445091,-1000.0,0.00017343,2]
[401312562,1768127445101,-791.0,0.00017343,2]
[401312563,1768127445110,-1041.66666667,0.00017386,2]
[401312564,1768127445205,-5000.0,0.00017412,2]
[401312565,1768127445218,-2500.0,0.00017534,2]
[401312566,1768127445227,-2567.54835774,0.00017534,2]
[401312567,1768127445236,-4142.48470631,0.00017656,2]
[401312568,1768127445246,-4495.04726907,0.00017656,2]
[401312569,1768127445256,-870.24597621,0.00017741,2]
[401312570,1768127445267,-425.28,0.000178,2]
[401312571,1768127445277,-163.43551009,0.00018082,3]
[401312572,1768127445286,-425.28,0.000183,2]
[401312573,1768127445297,-5000.0,0.00018863,2]
[401312574,1768127445306,-425.28,0.000189,2]
[401312575,1768127445315,-303.10001603,0.000189,2]
[401312576,1768127445324,-303.10001603,0.000189,2]
[401312577,1768127445334,-1000.0,0.00019078,2]
[401312578,1768127445343,-1000.0,0.00019078,2]
[401312579,1768127445352,-468.6,0.00019087,2]
[401312580,1768127445361,-303.10001603,0.00019089,2]
[401312581,1768127445371,-303.10001603,0.00019089,2]
[401312582,1768127445378,-506.7938,0.00019178,2]
[401312583,1768127445386,-200.0,0.00019178,2]
[401312584,1768127445395,-13367.01,0.000192,2]
[401312585,1768127445403,-166.96,0.000192,2]
[401312586,1768127445412,-163.88,0.000192,2]
[401312587,1768127445421,-167.58,0.000192,2]
[401312588,1768127445429,-303.10001603,0.00019278,2]
[401312589,1768127445437,-303.10001603,0.00019278,2]
[401312590,1768127445445,-798.36618515,0.0001931,2]
[401312591,1768127445453,-425.28,0.000194,2]
[401312592,1768127445461,-303.10001603,0.00019467,2]
[401312593,1768127445470,-303.10001603,0.00019467,2]
[401312594,1768127445479,-2140.41,0.000195,2]
[401312595,1768127445488,-303.10001603,0.00019656,2]
[401312596,1768127445497,-303.10001603,0.00019656,2]
[401312597,1768127445507,-454.65002405,0.00019845,4]
[401312598,1768127445516,-454.65002405,0.00019845,4]
[401312599,1768127445525,-425.28,0.000199,2]
[401312600,1768127445534,-506.7938,0.0002,4]
[401312601,1768127445544,-52113.00553346,0.0002,2]
[401312602,1768127445553,-151.97857558,0.0002,2]
[401312603,1768127445563,-454.65002405,0.00020034,4]
[401312604,1768127445572,-454.65002405,0.00020034,4]
[401312605,1768127445581,-870.24597621,0.00020117,2]
[401312606,1768127445590,-454.65002405,0.00020223,4]
[401312608,1768127445600,-454.65002405,0.00020223,4]
[401312610,1768127445609,-425.28,0.000204,2]
[401312612,1768127445618,-506.7938,0.00020411,5]
[401312614,1768127445627,-454.65002405,0.00020412,4]
[401312616,1768127445637,-454.65002405,0.00020412,4]
[401312618,1768127445646,-2096.819629,0.00020548,2]
[401312620,1768127445656,-454.65002405,0.00020601,4]
[401312623,1768127445666,-301.57435521,0.00020601,4]
[401312625,1768127445675,-155.03,0.00020694,2]
[401312626,1768127445685,-361.73,0.00020811,2]
[401312627,1768127445694,-468.6,0.00020885,2]
[401312628,1768127445703,-425.28,0.000209,2]
[401312629,1768127445712,-1000.0,0.00020985,2]
[401312630,1768127445721,-1000.0,0.00020985,2]
[401312631,1768127445730,-579.0,0.00020985,2]
[401312632,1768127445739,-13426.51869244,0.00021071,2]
[401312633,1768127445748,-2870.56440789,0.0002131,2]
[401312634,1768127445757,-874.00087638,0.0002131,2]
[401312635,1768127445766,-425.28,0.000214,2]
[401312636,1768127445775,-425.28,0.000219,2]
[401312637,1768127445784,-152.90727816,0.00021918,2]
[401312638,1768127445793,-384.55183898,0.00021981,2]
[401312639,1768127445802,-384.55183898,0.00022113,9]
[401312640,1768127445810,-384.55183898,0.00022245,17]
[401312641,1768127445819,-384.55183898,0.00022377,25]
[401312642,1768127445828,-425.28,0.000224,2]
[401312643,1768127445837,-870.24597621,0.00022494,2]
[401312644,1768127445846,-384.55183898,0.0002251,32]
[401312645,1768127445855,-384.55183898,0.00022642,40]
[401312646,1768127445864,-468.6,0.00022682,2]
[401312647,1768127445873,-384.55183898,0.00022774,48]
[401312648,1768127445882,-384.55183898,0.00022906,56]
[401312649,1768127445891,-425.28,0.00023,2]
[401312650,1768127445900,-384.55183898,0.00023038,63]
[401312651,1768127445908,-1000.0,0.00023084,10]
[401312652,1768127445917,-1000.0,0.00023084,10]
[401312653,1768127445926,-1000.0,0.00023084,10]
[401312654,1768127445936,-384.55183898,0.00023171,71]
[401312655,1768127445945,-384.55183898,0.00023303,79]
[401312656,1768127445954,-949.6355676,0.0002331,2]
[401312657,1768127445963,-384.55183898,0.00023435,86]
[401312658,1768127445972,-425.28,0.000235,2]
[401312659,1768127445981,-425.28,0.00024,2]
[401312660,1768127445990,-468.6,0.0002448,2]
[401312661,1768127445999,-425.28,0.000245,2]
[401312662,1768127446008,-630.83049355,0.0002465,2]
[401312663,1768127446018,-500.0,0.00024658,2]
[401312664,1768127446027,-500.0,0.00024795,2]
[401312665,1768127446036,-76526.0115688,0.000248,2]
[401312666,1768127446045,-870.24597621,0.0002487,2]
[401312667,1768127446055,-400097.821185,0.000249,2]
[401312668,1768127446064,-151.0,0.000249,7]
[401312669,1768127446073,-728.329358,0.000249,7]
[401312670,1768127446082,-728.329358,0.000249,7]
[401312671,1768127446091,-728.329358,0.000249,7]
[401312673,1768127446100,-728.329358,0.000249,7]
[401312675,1768127446109,-151.0,0.000249,7]
[401312677,1768127446118,-151.0,0.000249,7]
[401312679,1768127446127,-151.0,0.000249,2]
[401312681,1768127446137,-156.419626,0.000249,7]
[401312683,1768127446148,-151.0,0.000249,7]
[401312686,1768127446157,-151.0,0.000249,7]
[401312688,1768127446167,-500.0,0.00024932,2]
[401312689,1768127446176,-425.28,0.00025,2]
[401312691,1768127446185,-2675.46555144,0.00025,2]
[401312692,1768127446194,-20757.85955183,0.00025,2]
[401312693,1768127446203,-10364.0,0.00025,2]
[401312695,1768127446216,-500.0,0.00025,2]
[401312697,1768127446227,-2074.08935166,0.00025,2]
[401312700,1768127446236,-759.6161654,0.00025,2]
[401312703,1768127446246,-225.859576,0.00025,7]
[401312706,1768127446259,-151.0,0.00025,7]
[401312709,1768127446268,-151.0,0.00025,7]
[401312711,1768127446277,-151.0,0.00025,7]
[401312713,1768127446287,-1355.369352,0.00025,7]
[401312716,1768127446298,-1355.369352,0.00025,7]
[401312718,1768127446307,-1355.369352,0.00025,7]
[401312720,1768127446317,-1355.369352,0.00025,7]
[401312722,1768127446327,-151.0,0.00025,7]
[401312724,1768127446337,-151.0,0.00025,7]
[401312726,1768127446347,-152.567384,0.00025,7]
[401312728,1768127446359,-151.0,0.00025,7]
[401312730,1768127446369,-151.0,0.00025,7]
[401312732,1768127446379,-151.0,0.00025,7]
[401312735,1768127446390,-151.0,0.00025,7]
[401312737,1768127446400,-151.0,0.00025,7]
[401312739,1768127446409,-500.0,0.00025069,2]
[401312741,1768127446419,-250.0,0.00025205,2]
[401312743,1768127446430,-500.0,0.00025206,2]
[401312745,1768127446440,-1025.27025883,0.0002531,2]
[401312747,1768127446449,-500.0,0.00025343,2]
[401312749,1768127446459,-1000.0,0.00025392,10]
[401312751,1768127446470,-1000.0,0.00025392,10]
[401312753,1768127446479,-1000.0,0.00025392,10]
[401312755,1768127446490,-715.0,0.00025392,10]
[401312758,1768127446502,-258.77529652,0.00025397,14]
[401312760,1768127446512,-13367.01,0.000254,2]
[401312761,1768127446522,-1041.66666667,0.000254,10]
[401312763,1768127446532,-500.0,0.0002548,2]
[401312765,1768127446541,-425.28,0.000255,2]
[401312767,1768127446551,-1000.0,0.000255,2]
[401312769,1768127446561,-500.0,0.00025617,2]
[401312771,1768127446570,-350.0,0.00025753,2]
[401312772,1768127446579,-255.99235489,0.00025754,2]
[401312773,1768127446589,-2000.51544348,0.0002587,2]
[401312774,1768127446599,-425.28,0.00026,2]
[401312775,1768127446608,-53944.89189628,0.00026,30]
[401312776,1768127446618,-468.6,0.00026278,2]
[401312777,1768127446627,-450.0,0.00026301,2]
[401312779,1768127446637,-425.28,0.000265,2]
[401312781,1768127446647,-500.0,0.00026576,2]
[401312783,1768127446656,-500.0,0.00026576,2]
[401312785,1768127446666,-500.0,0.00026576,2]
[401312787,1768127446675,-500.0,0.00026576,2]
[401312789,1768127446684,-500.0,0.00026576,2]
[401312791,1768127446694,-154.30171575,0.00026576,2]
[401312793,1768127446703,-500.0,0.00026713,2]
[401312795,1768127446712,-500.0,0.00026713,2]
[401312797,1768127446722,-500.0,0.00026713,2]
[401312799,1768127446731,-500.0,0.00026713,2]
[401312801,1768127446741,-500.0,0.00026713,2]
[401312803,1768127446751,-201.95802809,0.00026713,2]
[401312805,1768127446760,-550.0,0.00026849,2]
[401312807,1768127446770,-223.56062369,0.0002685,2]
[401312809,1768127446779,-500.0,0.0002685,2]
[401312811,1768127446788,-500.0,0.0002685,2]
[401312813,1768127446797,-500.0,0.0002685,2]
[401312815,1768127446806,-500.0,0.0002685,2]
[401312817,1768127446816,-500.0,0.00026987,2]
[401312819,1768127446825,-300.0,0.00026987,2]
[401312821,1768127446834,-250.0,0.00026987,2]
[401312823,1768127446843,-500.0,0.00026987,2]
[401312825,1768127446854,-4999.99999901,0.00027,2]
[401312827,1768127446863,-183.0,0.00027041,23]
[401312828,1768127446872,-425.28,0.000271,2]
[401312830,1768127446881,-181.17141011,0.00027119,2]
[401312831,1768127446889,-500.00000003,0.00027124,2]
[401312833,1768127446899,-500.0,0.00027124,2]
[401312834,1768127446908,-2870.56440789,0.00027215,2]
[401312836,1768127446917,-870.24597621,0.00027247,2]
[401312838,1768127446926,-500.0,0.00027261,2]
[401312839,1768127446935,-2140.41,0.000273,14]
[401312841,1768127446944,-1100.90495005,0.0002731,2]
[401312842,1768127446954,-394.08412848,0.0002739,7]
[401312844,1768127446963,-702.10519323,0.00027397,5]
[401312845,1768127446972,-300.0,0.00027397,2]
[401312847,1768127446981,-300.0,0.00027397,2]
[401312848,1768127446989,-300.0,0.00027397,2]
[401312850,1768127446998,-300.0,0.00027397,2]
[401312852,1768127447007,-500.0,0.00027398,2]
[401312853,1768127447016,-500.0,0.00027535,2]
[401312855,1768127447025,-425.28,0.000276,2]
[401312857,1768127447034,-500.0,0.00027672,2]
[401312858,1768127447043,-500.0,0.00027809,2]
[401312866,1768127447124,-1000.0,0.00027932,30]
[401312868,1768127447142,-1000.0,0.00027932,30]
[401312869,1768127447152,-1000.0,0.00027932,30]
[401312871,1768127447162,-500.0,0.00027946,2]
[401312873,1768127447171,-15330.50011171,0.00028,2]
[401312874,1768127447180,-520.4204079,0.00028,2]
[401312876,1768127447189,-170.63320831,0.00028014,5]
[401312878,1768127447198,-5000.0,0.00028037,2]
[401312879,1768127447207,-468.6,0.00028076,3]
[401312881,1768127447220,-500.0,0.00028083,2]
[401312882,1768127447229,-425.28,0.000281,2]
[401312883,1768127447238,-500.0,0.0002822,2]
[401312884,1768127447247,-500.0,0.00028357,2]
[401312885,1768127447256,-152.72644825,0.00028494,2]
[401312887,1768127447267,-425.28,0.000286,2]
[401312889,1768127447276,-212.0,0.00028685,30]
[401312891,1768127447285,-163.38,0.000287,3]
[401312893,1768127447295,-429431.6619482,0.0002876,14]
[401312895,1768127447304,-170.63320832,0.00028837,5]
[401312897,1768127447313,-2412.5313746,0.00029,10]
[401312900,1768127447324,-8382.93313115,0.0002902,2]
[401312902,1768127447334,-425.28,0.000291,2]
[401312904,1768127447344,-1176.53964128,0.0002931,2]
[401312906,1768127447353,-1112.0,0.00029491,2]
[401312908,1768127447362,-2665.91589527,0.00029513,2]
[401312910,1768127447371,-425.28,0.000296,2]
[401312912,1768127447380,-870.24597621,0.00029623,2]
[401312913,1768127447389,-170.63320831,0.00029729,5]
[401312914,1768127447399,-500.0,0.00029817,7]
[401312915,1768127447408,-468.6,0.00029874,4]
[401312916,1768127447418,-13367.01,0.000299,2]
[401312917,1768127447427,-5008.97139185,0.0003,10]
[401312918,1768127447437,-89030.96900453,0.0003,30]
[401312919,1768127447446,-258.50979211,0.0003,10]
[401312920,1768127447456,-215.965,0.00030062,25]
[401312921,1768127447465,-425.28,0.000301,2]
[401312922,1768127447474,-151.0,0.00030136,15]
[401312923,1768127447484,-151.0,0.00030136,20]
[401312924,1768127447493,-300.0,0.00030137,5]
[401312925,1768127447502,-151.0,0.00030137,120]
[401312926,1768127447512,-2099.00986107,0.0003014,120]
[401312927,1768127447522,-536.72987461,0.00030194,7]
[401312928,1768127447532,-5000.0,0.00030203,2]
[401312929,1768127447541,-210.77216325,0.00030648,10]
[401312930,1768127447551,-163.0,0.00030877,42]